fUST/lending_fUST_20240123
["ID","MTS","AMOUNT","RATE_DAILY","PERIOD"]
[312568532,1706010649925,-771.10139871,0.00020822,2]
[312568533,1706010649935,-500.0,0.00020822,2]
[312568534,1706010649944,-500.0,0.00020822,2]
[312568535,1706010649953,-771.10139871,0.00020822,2]
[312568536,1706010649962,-500.0,0.00020822,2]
[312568537,1706010649971,-771.10139871,0.00020822,2]
[312568538,1706010649980,-500.0,0.00020822,2]
[312568539,1706010649990,-771.10139871,0.00020822,2]
[312568540,1706010649999,-500.0,0.00020822,2]
[312568541,1706010650008,-500.0,0.00020822,2]
[312568542,1706010650017,-771.10139871,0.00020822,2]
[312568543,1706010650027,-500.0,0.00020822,2]
[312568544,1706010650041,-771.10139871,0.00020822,2]
[312568545,1706010650051,-500.0,0.00020822,2]
[312568546,1706010650061,-771.10139871,0.00020822,2]
[312568547,1706010650154,-771.10139871,0.00020822,2]
[312568548,1706010650164,-771.10139871,0.00020822,2]
[312568549,1706010650173,-500.0,0.00020822,2]
[312568550,1706010650182,-771.10139871,0.00020822,2]
[312568551,1706010650191,-771.10139871,0.00020822,2]
[312568552,1706010650201,-771.10139871,0.00020822,2]
[312568553,1706010650210,-771.10139871,0.00020822,2]
[312568554,1706010650219,-771.10139871,0.00020822,2]
[312568555,1706010650228,-771.10139871,0.00020822,2]
[312568556,1706010650238,-771.10139871,0.00020822,2]
[312568557,1706010650247,-771.10139871,0.00020822,2]
[312568558,1706010650256,-771.10139871,0.00020822,2]
[312568559,1706010650266,-771.10139871,0.00020822,2]
[312568560,1706010650276,-771.10139871,0.00020822,2]
[312568561,1706010650289,-771.10139871,0.00020822,2]
[312568562,1706010650299,-771.10139871,0.00020822,2]
[312568563,1706010650308,-771.10139871,0.00020822,2]
[312568564,1706010650317,-771.10139871,0.00020822,2]
[312568565,1706010650326,-771.10139871,0.00020822,2]
[312568566,1706010650336,-771.10139871,0.00020822,2]
[312568567,1706010650346,-771.10139871,0.00020822,2]
[312568568,1706010650355,-771.10139871,0.00020822,2]
[312568569,1706010650365,-771.10139871,0.00020822,2]
[312568570,1706010650375,-771.10139871,0.00020822,2]
[312568571,1706010650385,-771.10139871,0.00020822,2]
[312568572,1706010650395,-771.10139871,0.00020822,2]
[312568573,1706010650407,-771.10139871,0.00020822,2]
[312568574,1706010650417,-771.10139871,0.00020822,2]
[312568575,1706010650427,-771.10139871,0.00020822,2]
[312568576,1706010650437,-771.10139871,0.00020822,2]
[312568577,1706010650447,-500.0,0.00020822,2]
[312568578,1706010650456,-500.0,0.00020822,2]
[312568579,1706010650466,-500.0,0.00020822,2]
[312568580,1706010650476,-500.0,0.00020822,2]
[312568581,1706010650486,-500.0,0.00020822,2]
[312568582,1706010650496,-500.0,0.00020822,2]
[312568583,1706010650505,-782.06148683,0.00020822,2]
[312568584,1706010650515,-782.06148683,0.00020822,2]
[312568585,1706010650525,-782.06148683,0.00020822,2]
[312568586,1706010650541,-782.06148683,0.00020822,2]
[312568587,1706010650552,-2011.10960389,0.00020822,2]
[312568588,1706010650562,-782.06148683,0.00020822,2]
[312568589,1706010650572,-2011.10960389,0.00020822,2]
[312568590,1706010650583,-782.06148683,0.00020822,2]
[312568591,1706010650593,-2011.10960389,0.00020822,2]
[312568592,1706010650603,-782.06148683,0.00020822,2]
[312568593,1706010650613,-2011.10960389,0.00020822,2]
[312568594,1706010650623,-782.06148683,0.00020822,2]
[312568595,1706010650633,-2011.10960389,0.00020822,2]
[312568596,1706010650643,-782.06148683,0.00020822,2]
[312568597,1706010650654,-2011.10960389,0.00020822,2]
[312568598,1706010650665,-782.06148683,0.00020822,2]
[312568599,1706010650675,-2011.10960389,0.00020822,2]
[312568600,1706010650686,-782.06148683,0.00020822,2]
[312568601,1706010650697,-782.06148683,0.00020822,2]
[312568602,1706010650707,-2011.10960389,0.00020822,2]
[312568603,1706010650716,-2011.10960389,0.00020822,2]
[312568604,1706010650725,-782.06148683,0.00020822,2]
[312568605,1706010650735,-2011.10960389,0.00020822,2]
[312568606,1706010650745,-782.06148683,0.00020822,2]
[312568607,1706010650755,-782.06148683,0.00020822,2]
[312568608,1706010650765,-2011.10960389,0.00020822,2]
[312568609,1706010650775,-782.06148683,0.00020822,2]
[312568610,1706010650786,-2011.10960389,0.00020822,2]
[312568611,1706010650796,-782.06148683,0.00020822,2]
[312568612,1706010650805,-2011.10960389,0.00020822,2]
[312568613,1706010650815,-782.06148683,0.00020822,2]
[312568614,1706010650824,-2011.10960389,0.00020822,2]
[312568615,1706010650834,-782.06148683,0.00020822,2]
[312568616,1706010650843,-782.06148683,0.00020822,2]
[312568617,1706010650853,-2011.10960389,0.00020822,2]
[312568618,1706010650863,-2011.10960389,0.00020822,2]
[312568619,1706010650872,-782.06148683,0.00020822,2]
[312568620,1706010650882,-2011.10960389,0.00020822,2]
[312568621,1706010650892,-782.06148683,0.00020822,2]
[312568622,1706010650901,-782.06148683,0.00020822,2]
[312568623,1706010650911,-2011.10960389,0.00020822,2]
[312568624,1706010650920,-782.06148683,0.00020822,2]
[312568625,1706010650929,-2011.10960389,0.00020822,2]
[312568626,1706010650939,-782.06148683,0.00020822,2]
[312568627,1706010650949,-2011.10960389,0.00020822,2]
[312568628,1706010650958,-782.06148683,0.00020822,2]
[312568629,1706010650967,-2011.10960389,0.00020822,2]
[312568630,1706010650977,-782.06148683,0.00020822,2]
[312568631,1706010650986,-782.06148683,0.00020822,2]
[312568632,1706010650995,-2011.10960389,0.00020822,2]
[312568633,1706010651005,-782.06148683,0.00020822,2]
[312568634,1706010651014,-782.06148683,0.00020822,2]
[312568635,1706010651023,-782.06148683,0.00020822,2]
[312568636,1706010651035,-782.06148683,0.00020822,2]
[312568637,1706010651044,-782.06148683,0.00020822,2]
[312568638,1706010651054,-782.06148683,0.00020822,2]
[312568639,1706010651063,-782.06148683,0.00020822,2]
[312568640,1706010651073,-782.06148683,0.00020822,2]
[312568641,1706010651083,-782.06148683,0.00020822,2]
[312568642,1706010651092,-782.06148683,0.00020822,2]
[312568643,1706010651101,-782.06148683,0.00020822,2]
[312568644,1706010651110,-782.06148683,0.00020822,2]
[312568645,1706010651120,-782.06148683,0.00020822,2]
[312568646,1706010651129,-782.06148683,0.00020822,2]
[312568647,1706010651139,-782.06148683,0.00020822,2]
[312568648,1706010651150,-782.06148683,0.00020822,2]
[312568649,1706010651159,-782.06148683,0.00020822,2]
[312568650,1706010651169,-782.06148683,0.00020822,2]
[312568651,1706010651178,-782.06148683,0.00020822,2]
[312568652,1706010651187,-782.06148683,0.00020822,2]
[312568653,1706010651197,-782.06148683,0.00020822,2]
[312568654,1706010651207,-782.06148683,0.00020822,2]
[312568655,1706010651216,-782.06148683,0.00020822,2]
[312568656,1706010651226,-782.06148683,0.00020822,2]
[312568657,1706010651235,-782.06148683,0.00020822,2]
[312568658,1706010651244,-782.06148683,0.00020822,2]
[312568659,1706010651253,-782.06148683,0.00020822,2]
[312568660,1706010651263,-782.06148687,0.00020822,2]
[312568661,1706010651272,-782.06148687,0.00020822,2]
[312568662,1706010651282,-2011.10960383,0.00020822,2]
[312568663,1706010651293,-782.06148687,0.00020822,2]
[312568664,1706010651302,-782.06148687,0.00020822,2]
[312568665,1706010651312,-223.62863908,0.00020822,2]
[312568666,1706010651321,-161.07914469,0.00020822,2]
[312568667,1706010651331,-500.0,0.00020822,2]
[312568668,1706010651340,-500.0,0.00020822,2]
[312568669,1706010651349,-500.0,0.00020822,2]
[312568670,1706010651359,-500.0,0.00020822,2]
[312568671,1706010651368,-299.7343938,0.00020822,2]
[312568672,1706010651378,-500.0,0.00020822,2]
[312568673,1706010651388,-500.0,0.00020822,2]
[312568674,1706010651398,-412.47334751,0.00020822,2]
[312568675,1706010651407,-500.0,0.00020822,2]
[312568676,1706010651417,-500.0,0.00020822,2]
[312568677,1706010651427,-335.28077481,0.00020822,2]
[312568678,1706010651436,-154.92464539,0.00020822,2]
[312568679,1706010651447,-147981.28046926,0.00020997,2]
[312568680,1706010651458,-200.0,0.00021,2]
[312568681,1706010651468,-18791.733538,0.0002107,2]
[312568682,1706010651478,-154.92998483,0.00021354,2]
[312568683,1706010651488,-268.47314102,0.00021488,2]
[312568684,1706010651497,-620.04025348,0.00021583,2]
[312568685,1706010651508,-150.0,0.000216,2]
[312568686,1706010651518,-2084.66431328,0.00021729,2]
[312568687,1706010651528,-300.0,0.00021729,2]
[312568688,1706010651540,-1826.29054789,0.00021729,2]
[312568689,1706010651550,-298.82422574,0.00021917,2]
[312568690,1706010651560,-571.20254843,0.00021917,2]
[312568691,1706010651570,-166.666666,0.00021918,2]
[312568692,1706010651580,-343.87007356,0.00021956,2]
[312568693,1706010651590,-293.49920597,0.00022,4]
[312568694,1706010651600,-3969.08835529,0.00022,2]
[312568695,1706010651610,-426.05744554,0.00022,2]
[312568696,1706010651620,-184.41947217,0.00022,2]
[312568697,1706010651629,-991.27470016,0.00022,2]
[312568698,1706010651640,-2000.0,0.000222,3]
[312568699,1706010651654,-166.666666,0.00022431,2]
[312568700,1706010651664,-620.00201267,0.00022662,2]
[312568701,1706010651673,-507382.80432462,0.000229,2]
[312568702,1706010651683,-166.666666,0.00022944,2]
[312568703,1706010651693,-1610.50270225,0.00023,5]
[312568704,1706010651703,-260.0,0.00023,5]
[312568705,1706010651713,-1415.52295142,0.00023,2]
[312568706,1706010651724,-155.11891049,0.00023277,2]
[312568707,1706010651733,-166.666666,0.00023456,2]
[312568708,1706010651744,-153.0,0.00023562,2]
[312568709,1706010651754,-154.4105762,0.00023562,2]
[312568710,1706010651764,-153.0,0.00023562,2]
[312568711,1706010651773,-199.2396578,0.00023562,2]
[312568712,1706010651785,-153.0,0.00023562,2]
[312568713,1706010651795,-620.00010063,0.00023796,2]
[312568714,1706010651804,-3799.15085644,0.000239,2]
[312568715,1706010651814,-166.666666,0.00023969,2]
[312568716,1706010651896,-7704.47868303,0.00024,2]
[312568717,1706010651914,-502.67004677,0.00024,2]
[312568718,1706010651924,-199.2396578,0.00024384,2]
[312568719,1706010651933,-153.0,0.00024384,2]
[312568720,1706010651943,-153.0,0.00024384,2]
[312568721,1706010651952,-153.0,0.00024384,2]
[312568722,1706010651963,-199.2396578,0.00024384,2]
[312568723,1706010651972,-153.0,0.00024384,2]
[312568724,1706010651982,-153.0,0.00024384,2]
[312568725,1706010651992,-166.666666,0.00024482,2]
[312568726,1706010652003,-162.309141,0.00024658,2]
[312568727,1706010652013,-402.454699,0.00024658,2]
[312568728,1706010652023,-280.0,0.00024658,2]
[312568729,1706010652033,-499.92421913,0.0002496,5]
[312568730,1706010652043,-620.00000503,0.00024985,2]
[312568731,1706010652053,-4723.24260277,0.00025,2]
[312568732,1706010652063,-7381.29040931,0.00025,2]
[312568733,1706010652073,-154.9690062,0.00025,2]
[312568734,1706010652082,-2123.1,0.00025,2]
[312568735,1706010652092,-154.86062544,0.00025,2]
[312568736,1706010652102,-300.0,0.000251,11]
[312568737,1706010652111,-232.70416,0.000251,2]
[312568738,1706010652121,-689.58681505,0.00025159,2]
[312568739,1706010652131,-2808.58495471,0.00025161,2]
[312568740,1706010652140,-526.75292248,0.00025169,2]
[312568741,1706010652149,-670.58761481,0.0002517,2]
[312568742,1706010652159,-219.29310583,0.00025171,2]
[312568743,1706010652168,-9286.90575802,0.00025297,2]
[312568744,1706010652177,-402.454699,0.0002544,2]
[312568745,1706010652186,-1000.0,0.00025752,3]
[312568746,1706010652196,-153.0,0.00025753,2]
[312568747,1706010652205,-1000.0,0.00025827,3]
[312568748,1706010652215,-1000.0,0.00025827,3]
[312568749,1706010652224,-1000.0,0.00025827,3]
[312568750,1706010652234,-1000.0,0.00025827,3]
[312568751,1706010652243,-1000.0,0.00025827,3]
[312568752,1706010652252,-1000.0,0.00025827,3]
[312568753,1706010652262,-1000.0,0.00025827,3]
[312568754,1706010652271,-1000.0,0.00025827,3]
[312568755,1706010652281,-1000.0,0.00025827,3]
[312568756,1706010652292,-1000.0,0.00025827,3]
[312568757,1706010652302,-1000.0,0.00025827,3]
[312568758,1706010652311,-156.39730734,0.00025978,2]
[312568759,1706010652320,-241.24702868,0.00026,2]
[312568760,1706010652329,-1000.0,0.00026042,3]
[312568761,1706010652338,-1000.0,0.00026042,3]
[312568762,1706010652348,-402.454699,0.00026223,2]
[312568763,1706010652357,-620.00000025,0.00026235,2]
[312568764,1706010652366,-153.0,0.00026301,2]
[312568765,1706010652375,-153.0,0.00026301,2]
[312568766,1706010652384,-50000.0,0.00026574,2]
[312568767,1706010652393,-547.187732,0.000266,12]
[312568768,1706010652403,-290.32272867,0.00027,2]
[312568769,1706010652413,-200.0,0.00027,2]
[312568770,1706010652422,-182.62049898,0.00027,4]
[312568771,1706010652431,-402.454699,0.00027006,2]
[312568772,1706010652441,-155.0,0.00027397,2]
[312568773,1706010652450,-161.89673422,0.00027397,10]
[312568774,1706010652459,-160.64736873,0.00027397,10]
[312568775,1706010652469,-620.00000001,0.00027546,2]
[312568776,1706010652479,-301.83960351,0.00027593,2]
[312568777,1706010652488,-11560.96357933,0.00027595,5]
[312568778,1706010652498,-402.454699,0.00027789,2]
[312568779,1706010652508,-7671.00415849,0.00027855,2]
[312568780,1706010652517,-546.95952545,0.000279,2]
[312568781,1706010652526,-2756.37497206,0.000279,2]
[312568782,1706010652539,-6545.18087169,0.00028,2]
[312568783,1706010652549,-239.35893169,0.00028,2]
[312568784,1706010652559,-200.0,0.00028,2]
[312568785,1706010652570,-500.3547841,0.00028,2]
[312568786,1706010652579,-1000.0,0.00028,2]
[312568787,1706010652588,-20046.87134784,0.00028165,2]
[312568788,1706010652598,-159.00439069,0.0002828,2]
[312568789,1706010652607,-1000.0,0.00028537,2]
[312568790,1706010652617,-1000.0,0.00028567,2]
[312568791,1706010652626,-402.454699,0.00028571,2]
[312568792,1706010652635,-4851.84509604,0.000286,3]
[312568793,1706010652645,-1000.0,0.00028656,2]
[312568794,1706010652866,-221.44676153,0.00028682,2]
[312568795,1706010652876,-155.0,0.00028767,2]
[312568796,1706010652886,-609.11293415,0.00028772,2]
[312568797,1706010652895,-5301.39,0.00028795,2]
[312568798,1706010652904,-5301.39,0.00028795,2]
[312568799,1706010652914,-5301.39,0.00028795,2]
[312568800,1706010652924,-5301.39,0.00028795,2]
[312568801,1706010652934,-5301.39,0.00028795,2]
[312568802,1706010652943,-5301.39,0.00028795,2]
[312568803,1706010652953,-5301.39,0.00028795,2]
[312568804,1706010652963,-5301.39,0.00028795,2]
[312568805,1706010652972,-5301.39,0.00028795,2]
[312568806,1706010652981,-5301.39,0.00028795,2]
[312568807,1706010652991,-353086.15324556,0.000288,2]
[312568808,1706010653001,-165982.93282205,0.000288,2]
[312569000,1706011831972,-154.92253873,0.00015969,2]
[312569002,1706011831982,-154.92253873,0.0001597,2]
[312569004,1706011831991,-924.96569171,0.00015999,2]
[312569006,1706011832003,-2438.68548328,0.00015999,2]
[312569008,1706011832014,-808.90265385,0.00015999,2]
[312569010,1706011832024,-1033.73911698,0.00016,2]
[312569104,1706011838806,-386.75,0.00016,2]
[312569110,1706011841086,-4769.92440782,0.00016,2]
[312569111,1706011841096,-3632.84448931,0.00018698,2]
[312569112,1706011841105,-164.891878,0.00019178,2]
[312569114,1706011841114,-177.569411,0.00019178,2]
[312569115,1706011841123,-24900.0,0.00019278,2]
[312569117,1706011841134,-1744.43311062,0.00020485,2]
[312569118,1706011841144,-741.35009371,0.00020552,2]
[312569119,1706011841153,-169.30079903,0.00020553,2]
[312569120,1706011841162,-238.50303044,0.00020553,2]
[312569121,1706011841172,-1584.08702927,0.00020907,2]
[312569122,1706011841181,-748.24201319,0.00020908,2]
[312569123,1706011841192,-4251.75798681,0.00020908,2]
[312569124,1706011841201,-1748.23615719,0.00020908,2]
[312569402,1706012834075,200.0,0.00021869,7]
[312569460,1706013033378,-154.92253873,0.00018899,3]
[312569461,1706013033389,-4172.55382884,0.00018899,2]
[312569462,1706013033398,-1266.38361882,0.000189,2]
[312569463,1706013033408,-3766.6321247,0.00019216,2]
[312569584,1706013043683,-9061.65783495,0.00019216,2]
[312569617,1706013046363,-154.93802479,0.00018815,3]
[312569618,1706013046373,-1822.18487345,0.00019216,2]
[312569625,1706013133933,200.0,0.00021137,7]
[312569666,1706014234383,-154.93802479,0.00018815,3]
[312569668,1706014234393,-4172.55382884,0.00018899,2]
[312569670,1706014234402,-844.25574588,0.000189,2]
[312569672,1706014234411,-207.402623,0.00018999,2]
[312569674,1706014234420,-198.78272721,0.00019094,2]
[312569676,1706014234430,-81.16210147,0.00019095,2]
[312570015,1706014243452,-24818.83789853,0.00019095,2]
[312570017,1706014243461,-177.569411,0.00019178,2]
[312570019,1706014243471,-195.80792141,0.00020326,2]
[312570021,1706014243480,-422.19200722,0.00020327,2]
[312570023,1706014243489,-416.38288128,0.00020327,2]
[312570025,1706014243498,-8557.14,0.00020888,3]
[312570027,1706014243508,-428.59666832,0.00020907,5]
[312570029,1706014243517,-3657.50905149,0.00020908,2]
[312570031,1706014243526,-436.26135012,0.00020908,2]
[312570033,1706014243535,-2264.58454838,0.00020908,2]
[312570364,1706014246649,-1572.80858127,0.00020908,2]
[312572385,1706014956546,-154.93802479,0.00018815,3]
[312572387,1706014972576,75.06197521,0.00017915,3]
[312572477,1706015432625,-79.92252634,0.00017915,3]
[312572479,1706015432634,-562.83716392,0.000189,2]
[312572481,1706015432644,-4986.48868184,0.00019655,2]
[312572607,1706015438635,-3247.051522,0.00019655,2]
[312572608,1706015438647,-16666.45979616,0.00019655,2]
[312572609,1706015438656,-207.402623,0.00019907,2]
[312572610,1706015438665,-176.83895636,0.00020816,2]
[312572611,1706015438674,-395.97566752,0.00020907,2]
[312572612,1706015438696,-2913.80901712,0.00020907,2]
[312572613,1706015438705,-151.0,0.00020908,2]
[312572614,1706015438714,-141.30663727,0.00020908,2]
[312572640,1706015441590,-7123.94,0.00020906,3]
[312572641,1706015441600,-9.69336273,0.00020908,2]
[312572642,1706015441609,-287.885421,0.00020908,2]
[312572643,1706015441618,-518.80734,0.00020908,2]
[312572644,1706015441627,-518.80734,0.00020908,2]
[312572645,1706015441636,-492.009372,0.00020908,2]
[312572646,1706015441645,-492.009372,0.00020908,2]
[312572647,1706015441654,-492.009372,0.00020908,2]
[312572648,1706015441663,-492.009372,0.00020908,2]
[312572649,1706015441672,-492.009372,0.00020908,2]
[312572650,1706015441680,-492.009372,0.00020908,2]
[312572651,1706015441690,-1162.60687035,0.00020908,2]
[312572652,1706015441699,-2084.66431328,0.00020908,2]
[312572653,1706015441708,-300.0,0.00020908,2]
[312572654,1706015441717,-633.35677535,0.00020909,2]
[312572655,1706015441726,-515.01934425,0.00020911,2]
[312572656,1706015441735,-151.0,0.00020914,2]
[312572657,1706015441744,-518.80734,0.00020914,2]
[312572658,1706015441754,-492.009372,0.00020914,2]
[312572659,1706015441763,-492.009372,0.00020914,2]
[312572660,1706015441773,-11607.20607693,0.00020914,2]
[312572661,1706015441782,-5000.0,0.00020914,2]
[312572662,1706015441791,-151.0,0.00020916,2]
[312572663,1706015441800,-151.0,0.00020916,2]
[312572664,1706015441810,-518.80734,0.00020916,2]
[312572665,1706015441819,-518.80734,0.00020916,2]
[312572666,1706015441828,-518.80734,0.00020916,2]
[312572667,1706015441838,-518.80734,0.00020916,2]
[312572668,1706015441847,-492.009372,0.00020916,2]
[312572669,1706015441856,-492.009372,0.00020916,2]
[312572671,1706015441865,-492.009372,0.00020916,2]
[312572672,1706015441875,-492.009372,0.00020916,2]
[312572673,1706015441885,-1145.40149427,0.00020916,2]
[312572674,1706015441893,-5000.0,0.00020916,2]
[312572675,1706015441902,-5000.0,0.00020917,2]
[312572677,1706015441911,-151.0,0.00020919,2]
[312572678,1706015441920,-518.80734,0.00020919,2]
[312572679,1706015441930,-518.80734,0.00020919,2]
[312572681,1706015441939,-492.009372,0.00020919,2]
[312572683,1706015441948,-492.009372,0.00020919,2]
[312572684,1706015441959,-5000.0,0.00020919,2]
[312572686,1706015441968,-5000.0,0.0002092,2]
[312572688,1706015441977,-492.009372,0.0002092,2]
[312572689,1706015441986,-492.009372,0.0002092,2]
[312572691,1706015441995,-4118.0176858,0.00020921,2]
[312572926,1706015446718,-881.9823142,0.00020921,2]
[312572928,1706015446727,-1887.7836858,0.00020922,2]
[312573031,1706016631834,-154.9690062,0.00018899,3]
[312573032,1706016631848,-375.22477594,0.000189,2]
[312573033,1706016631859,-3112.2163142,0.00020922,2]
[312573034,1706016631870,-300.0,0.00020922,2]
[312573035,1706016631881,-749.36765703,0.00020922,2]
[312573070,1706016638856,-466.10028204,0.00020603,2]
[312573073,1706016638870,-15096.31663444,0.00020603,2]
[312573108,1706016639292,-2963.29499985,0.00020603,2]
[312573109,1706016639304,-1127.53646471,0.00020603,2]
[312573127,1706016640934,-2179.42258337,0.00020603,2]
[312573128,1706016640951,-3067.32903559,0.00020603,2]
[312573129,1706016640960,-1335.29665625,0.00020922,2]
[312573130,1706016640969,-400.25203313,0.00020922,2]
[312573131,1706016640978,-4450.84846499,0.00020934,2]
[312573132,1706016640987,-7237.25827448,0.00020937,2]
[312573133,1706016640996,-247.27710731,0.0002094,2]
[312573134,1706016641005,-146.54239948,0.00021137,2]
[312573135,1706016641015,-1679.74814841,0.00021137,2]
[312573136,1706016641025,-2074.30424928,0.00021713,2]
[312573137,1706016641035,-191.46192,0.000218,2]
[312573138,1706016641044,-245.298024,0.000218,2]
[312573139,1706016641053,-166.666666,0.00021918,2]
[312573140,1706016641062,-293.49920597,0.00022,4]
[312573141,1706016641071,-3896.97142898,0.00022,2]
[312573204,1706016645870,-72.11692631,0.00022,2]
[312573206,1706016645880,-426.05744554,0.00022,2]
[312573208,1706016645889,-428.59666832,0.00022012,5]
[312573210,1706016645898,-154.39247183,0.000222,3]
[312573311,1706017832002,-154.9690062,0.00019817,3]
[312573312,1706017832011,-436.55746717,0.00019818,2]
[312573313,1706017832021,-11099.48063025,0.00020808,2]
[312573386,1706017838020,-2442.16663188,0.00020808,2]
[312573395,1706017838093,-8175.94712396,0.00020808,2]
[312573417,1706017841112,-1952.4,0.00020808,2]
[312573485,1706017843161,-1230.00561391,0.00020808,2]
[312573486,1706017843171,-527.28615373,0.00020822,2]
[312573488,1706017843182,-98.69900304,0.00020922,2]
[312573492,1706017843220,-95.62940752,0.00020922,2]
[312573493,1706017843229,-2513.85058243,0.00020946,2]
[312573495,1706017843238,-1848.18057672,0.00020946,2]
[312573538,1706017846548,-1057.14335924,0.00020946,2]
[312573563,1706018537439,280.0,0.00021263,7]
[312573564,1706018758756,2102.8255172,0.00015355,2]
[312573565,1706018774256,1811.99873697,0.00015355,2]
[312573566,1706018775912,682.49720173,0.00015355,2]
[312573567,1706018778965,1109.84543149,0.00015355,2]
[312573568,1706018789925,831.0798656,0.00015355,2]
[312573570,1706018792979,284.05331815,0.00015355,2]
[312573576,1706018801047,1811.99873697,0.00015355,2]
[312573578,1706018828994,1811.99873697,0.00015355,2]
[312573579,1706018837871,391.0,0.00021623,7]
[312573589,1706018845021,1811.99873697,0.00015355,2]
[312573593,1706018863204,1811.99873697,0.00015355,2]
[312573595,1706018881365,1811.99873697,0.00015355,2]
[312573596,1706018899184,1811.99873697,0.00015355,2]
[312573597,1706018917829,663.4204315,0.00015042,2]
[312573665,1706019032321,-1470.54830513,0.00015708,2]
[312573667,1706019032331,-2034.8354721,0.00015924,2]
[312573669,1706019032340,-1579.63437515,0.00015925,2]
[312573671,1706019032349,-14053.18184762,0.00015925,2]
[312573674,1706019032363,-3896.86961638,0.00015925,2]
[312573855,1706019038288,-480.52774102,0.00015924,2]
[312573857,1706019038301,-3005.6788571,0.00015924,2]
[312573859,1706019038312,-1919.63882166,0.00015925,2]
[312573860,1706019038322,-876.49195617,0.00015925,2]
[312573862,1706019038331,-154.98450155,0.00015925,2]
[312573864,1706019038341,-555.44587219,0.00015925,2]
[312573866,1706019038351,-329.5866367,0.00015925,2]
[312573867,1706019038360,-644.50238082,0.00015926,2]
[312573868,1706019038370,-595.20396947,0.00015926,2]
[312573869,1706019038385,-178.943722,0.00015926,2]
[312573870,1706019038395,-20877.12280523,0.00015926,2]
[312573871,1706019038406,-170.95735375,0.00015926,2]
[312573872,1706019038416,-211.56535295,0.00015927,2]
[312573873,1706019038426,-8763.20057001,0.00015927,2]
[312573874,1706019038436,-588.43545532,0.00015927,2]
[312573875,1706019038445,-680.18772448,0.00015927,2]
[312573876,1706019038454,-154.98450155,0.00015927,2]
[312573877,1706019038464,-154.98450155,0.00015927,2]
[312573878,1706019038473,-166.69766072,0.00015927,2]
[312573879,1706019038484,-19703.61801721,0.00015927,2]
[312573880,1706019038493,-1696.80124596,0.00015928,2]
[312573881,1706019038503,-1993.75969151,0.00015928,2]
[312573882,1706019038513,-261.16845223,0.00015928,2]
[312573883,1706019038522,-711.85719866,0.00015929,2]
[312573884,1706019038531,-154.98450155,0.00015929,2]
[312573885,1706019038540,-154.98450155,0.00015929,2]
[312573886,1706019038550,-192.28199535,0.0001593,2]
[312573887,1706019038560,-1741.23527346,0.00015933,2]
[312573888,1706019038570,-154.98450155,0.00015934,2]
[312573889,1706019038580,-1293.92708226,0.00015934,2]
[312573890,1706019038590,-200.82377225,0.00015935,2]
[312573891,1706019038600,-18906.99974257,0.00016026,2]
[312573892,1706019038609,-4814.66042109,0.00016027,2]
[312573893,1706019038620,-616.82825218,0.00016028,2]
[312573894,1706019038634,-526.81431497,0.00016028,2]
[312573895,1706019038646,-1242.70829292,0.00016028,2]
[312573896,1706019038655,-20904.51158766,0.00016028,2]
[312573897,1706019038666,-213.4599841,0.00016029,2]
[312573898,1706019038676,-4172.55382884,0.00016029,2]
[312573899,1706019038686,-3746.49316477,0.00016029,2]
[312573900,1706019038695,-81216.67729639,0.00016029,2]
[312573901,1706019038704,-151.0,0.00016029,2]
[312573902,1706019038714,-151.0,0.00016029,2]
[312573903,1706019038723,-1811.99873697,0.0001603,2]
[312573904,1706019038733,-15222.33449075,0.0001603,2]
[312573905,1706019038743,-151.0,0.0001603,2]
[312573906,1706019038752,-151.0,0.00016031,2]
[312573907,1706019038762,-36970.40189612,0.00016031,2]
[312573908,1706019038771,-151.0,0.00016032,2]
[312573909,1706019038781,-151.0,0.00016032,2]
[312573910,1706019038790,-151.0,0.00016037,2]
[312573911,1706019038800,-163.32257243,0.00016146,2]
[312573912,1706019038810,-163.32257242,0.00016147,2]
[312573913,1706019038819,-151.0,0.00016147,2]
[312573914,1706019038828,-163.32257242,0.00016148,2]
[312573915,1706019038838,-163.32257242,0.00016149,2]